bitfinex/quotes_ETHUSD_20260304
["timestamp","ask_amount","ask_price","bid_price","bid_amount"]
[1772619574169,4.28786724,2079.5,2079.0,0.001]
[1772619574344,1.462,2079.4,2079.0,0.001]
[1772619575350,1.462,2079.4,2078.7,4.31496757]
[1772619576155,3.085601,2079.5,2078.7,4.31496757]
[1772619576469,5.74982192,2079.5,2078.7,4.31496757]
[1772619576670,5.74981436,2079.5,2078.7,4.31496757]
[1772619577080,4.28781435,2079.5,2078.7,4.31496757]
[1772619577267,1.462,2079.4,2078.7,4.31496757]
[1772619578049,4.547601,2079.4,2078.7,4.31496757]
[1772619578264,5.74991593,2079.4,2078.7,4.31496757]
[1772619578647,4.547601,2079.4,2078.7,4.31496757]
[1772619578850,5.74987209,2079.4,2078.7,4.31496757]
[1772619579060,4.547601,2079.4,2078.7,4.31496757]
[1772619579274,3.085601,2079.4,2078.7,4.31496757]
[1772619579476,4.547601,2079.4,2078.8,0.001]
[1772619579671,5.74988247,2079.4,2078.8,0.001]
[1772619579968,1.462,2079.6,2078.8,3.03422183]
[1772619580167,4.547601,2079.6,2078.8,3.03422183]
[1772619580474,3.085601,2079.4,2078.9,1.20255904]
[1772619580672,3.085601,2079.4,2078.8,1.20357028]
[1772619580974,3.085601,2079.4,2079.0,0.001]
[1772619581856,3.085601,2079.4,2078.8,0.002]
[1772619582261,3.085601,2079.2,2078.8,0.002]
[1772619582480,1.462,2079.1,2078.8,0.002]
[1772619583586,4.547601,2079.1,2078.8,0.002]
[1772619584080,3.085601,2079.1,2078.8,0.002]
[1772619584379,4.548601,2079.1,2078.9,0.001]
[1772619584570,4.28791206,2079.4,2078.9,0.001]
[1772619584878,1.463,2079.1,2078.9,0.001]
[1772619585780,4.548601,2079.1,2078.9,0.001]
[1772619586170,3.085601,2079.4,2078.9,0.001]
[1772619586485,5.75087259,2079.4,2078.9,0.001]
[1772619587156,3.085601,2079.4,2078.9,0.001]
[1772619587477,1.463,2079.3,2078.9,0.001]
[1772619588180,3.085601,2079.3,2078.9,0.001]
[1772619588394,4.41847305,2079.4,2078.5,4.11836983]
[1772619588552,4.4185242,2079.4,2078.7,1.20267474]
[1772619588753,1.464,2079.3,2078.7,1.20267474]
[1772619589176,0.002,2079.5,2078.8,2.91458451]
[1772619589688,0.002,2079.7,2079.0,2.91458451]
[1772619589874,3.21820043,2080.0,2079.2,2.91458451]
[1772619589875,0.002,2080.0,2079.2,2.91458451]
[1772619590551,0.002,2080.0,2079.4,2.91458451]
[1772619592678,0.002,2080.0,2079.5,1.20221207]
[1772619593884,0.002,2080.2,2079.6,2.91458451]
[1772619594089,0.002,2080.2,2079.6,2.91558451]
[1772619594671,0.002,2079.8,2079.7,4.11668096]
[1772619594869,0.002,2080.2,2079.7,4.11668096]
[1772619595269,0.002,2080.0,2079.7,4.11668096]
[1772619595468,0.002,2080.2,2079.7,4.11668096]
[1772619595979,0.002,2080.2,2079.7,1.20209645]
[1772619596290,0.002,2080.3,2079.8,2.91458451]
[1772619596664,0.002,2080.7,2080.0,2.91458451]
[1772619598582,0.002,2080.7,2080.1,1.20186529]
[1772619598788,3.21820043,2080.7,2079.7,7.72277516]
[1772619599091,3.21820043,2080.7,2079.8,2.91458451]
[1772619600566,0.002,2080.7,2079.8,2.91458451]
[1772619600862,3.21620043,2081.0,2080.0,2.91458451]
[1772619601466,4.41754993,2081.0,2080.0,2.91458451]
[1772619601664,3.21620043,2080.9,2079.9,1.20198086]
[1772619601864,3.21620043,2080.9,2079.6,0.001]
[1772619602186,3.21620043,2080.7,2079.7,2.91458451]
[1772619602497,4.67820043,2080.7,2079.6,1.20314643]
[1772619602662,3.21620043,2080.4,2079.6,0.001]
[1772619605006,3.21620043,2081.0,2079.6,2.91558451]
[1772619605296,3.21620043,2080.8,2079.8,2.91458451]
[1772619605476,1.461,2080.9,2079.8,2.91458451]
[1772619605875,3.21620043,2081.1,2080.0,2.91458451]
[1772619606197,3.21620043,2081.1,2080.2,2.91458451]
[1772619606692,4.41750388,2081.1,2080.3,1.20174974]
[1772619607192,3.21620043,2081.1,2080.3,1.20174974]
[1772619608269,0.002,2080.9,2080.3,1.20174974]
[1772619608470,3.21820043,2080.9,2080.3,1.20174974]
[1772619608685,0.002,2081.6,2080.3,1.20174974]
[1772619608887,0.002,2081.6,2080.6,2.91458451]
[1772619609102,3.21820043,2081.6,2080.6,2.91458451]
[1772619609392,0.002,2081.4,2080.6,2.91458451]
[1772619609565,0.002,2081.6,2080.7,3.0640695]
[1772619609987,0.002,2081.6,2080.5,1.75636636]
[1772619609988,3.21820043,2081.6,2080.5,4.67095087]
[1772619610188,3.21820043,2081.6,2080.6,2.91458451]
[1772619610984,3.21820043,2081.6,2080.7,1.20151871]
[1772619611186,3.21820043,2081.6,2080.7,4.11610322]
[1772619611374,3.21620043,2081.5,2080.7,1.20151871]
[1772619613075,3.21620043,2081.5,2080.4,4.80654293]
[1772619613076,3.21620043,2081.3,2080.4,4.80654293]
[1772619613774,3.21620043,2081.3,2080.5,2.91458451]
[1772619613990,4.41924837,2081.6,2080.5,2.91458451]
[1772619614401,3.21820043,2081.6,2080.5,2.91458451]
[1772619615073,3.21820043,2081.6,2080.7,2.91458451]
[1772619615271,3.21820043,2081.6,2080.8,2.91458451]
[1772619615272,1.20300475,2081.6,2080.8,2.91458451]
[1772619615703,4.41920518,2081.6,2080.8,2.91458451]
[1772619616006,3.21820043,2081.6,2080.8,2.91458451]
[1772619616669,4.4192007,2081.6,2080.8,2.91458451]
[1772619616869,3.21620043,2081.5,2080.6,1.20157646]
[1772619617097,4.41731506,2081.4,2080.6,1.20157646]
[1772619617603,3.21620043,2081.4,2080.6,1.20157646]
[1772619619207,3.02568161,2081.3,2080.6,1.20157646]
[1772619619391,3.02568161,2081.3,2080.3,1.20174974]
[1772619619392,3.02568161,2081.2,2080.3,1.20174974]
[1772619620269,3.02568161,2081.2,2080.2,1.20177588]
[1772619620907,1.456,2081.1,2080.2,1.20177588]
[1772619621197,4.22708484,2080.9,2080.0,4.80723007]
[1772619622000,3.02842441,2080.8,2080.0,4.80723007]
[1772619622188,3.02842441,2080.8,2080.0,1.20192307]
[1772619622686,1.20139096,2081.0,2080.1,2.95323685]
[1772619622889,4.22975532,2081.1,2080.1,2.95323685]
[1772619623096,4.22975532,2081.1,2080.2,1.20180751]
[1772619623408,4.22975532,2081.1,2080.2,4.15504436]
[1772619623570,3.02842441,2081.0,2080.2,1.20180751]
[1772619624205,1.20324904,2081.2,2080.3,2.95070779]
[1772619625401,1.20324904,2081.2,2080.4,1.20169198]
[1772619626103,0.002,2081.2,2080.5,2.94564445]
[1772619626314,0.026031,2081.4,2080.5,3.09312944]
[1772619627406,0.026031,2081.4,2080.6,4.14272451]
[1772619627619,0.026031,2081.4,2080.7,2.94114805]
[1772619627984,0.026031,2081.4,2080.8,0.14948499]
[1772619628177,1e-08,2081.4,2080.8,0.14948499]
[1772619628377,1e-08,2081.4,2080.7,2.94114805]
[1772619629510,1e-08,2081.4,2080.8,1.20146097]
[1772619630804,1e-08,2081.4,2080.8,4.13851722]
[1772619632908,1e-08,2081.4,2080.8,4.13951722]
[1772619633279,0.002,2081.2,2080.8,4.13951722]
[1772619633480,1e-08,2081.4,2080.8,1.20246097]
[1772619633481,3.02842442,2081.4,2080.8,1.20246097]
[1772619633707,3.03042442,2081.4,2080.8,1.20246097]
[1772619633897,3.03042442,2081.4,2080.8,0.001]
[1772619635210,3.02842441,2081.3,2080.8,0.001]
[1772619636220,4.22960194,2081.3,2080.8,0.001]
[1772619636521,0.002,2081.6,2080.9,2.9215621]
[1772619636726,0.002,2081.8,2081.1,2.9215621]
[1772619636927,3.03042441,2081.8,2081.1,2.9215621]
[1772619637103,3.03042441,2081.8,2080.9,4.2428922]
[1772619637302,3.03042441,2081.8,2081.0,2.9218922]
[1772619637604,0.002,2081.8,2081.0,2.9218922]
[1772619638318,0.002,2081.8,2081.1,1.20128778]
[1772619639717,3.03042441,2081.8,2081.1,1.20128778]
[1772619640416,1.20293976,2081.8,2081.0,4.80515112]
[1772619640603,3.02842441,2081.7,2081.0,4.80515112]
[1772619641308,3.02842441,2081.7,2080.9,0.001]
[1772619642296,3.02842441,2081.7,2080.9,1.20239813]
[1772619642623,3.02842441,2081.5,2080.9,0.001]
[1772619643821,3.02842441,2081.5,2080.8,0.001]
[1772619644039,3.02842441,2081.3,2080.5,0.002]
[1772619644534,3.02842441,2080.8,2080.3,0.001]
[1772619644734,3.02842441,2080.6,2080.3,0.001]
[1772619644905,3.02842441,2080.4,2079.4,1.20226988]
[1772619646808,1.20174974,2080.3,2079.4,1.20226988]
[1772619646993,4.23002923,2080.6,2079.5,2.88775753]
[1772619647197,3.02842441,2081.0,2079.8,2.88775753]
[1772619647424,3.02842441,2081.0,2079.8,0.001]
[1772619647933,3.02842441,2080.8,2079.8,0.001]
[1772619648142,3.02842441,2080.8,2080.5,0.001]
[1772619648304,3.02842441,2080.8,2079.8,0.001]
[1772619648507,4.47676991,2080.7,2079.8,0.001]
[1772619648896,1.20157646,2080.6,2079.8,1.20303865]
[1772619649199,4.80570574,2080.9,2079.9,2.98829746]
[1772619649427,4.23017314,2080.9,2079.9,2.98829746]
[1772619649639,3.02876991,2080.8,2079.9,2.98829746]
[1772619651946,4.23028862,2080.7,2079.9,4.19023525]
[1772619652453,3.02876991,2080.6,2079.9,1.20193779]
[1772619652668,3.02876991,2080.6,2079.8,1.20299424]
[1772619653248,3.02876991,2080.6,2079.8,0.001]
[1772619653741,1.447,2080.5,2079.8,0.001]
[1772619653942,1.2016321,2080.6,2079.8,2.98929746]
[1772619654119,1.20156372,2080.7,2079.8,2.98929746]
[1772619654634,4.8087712,2081.3,2080.0,2.98829746]
[1772619654635,4.22999996,2081.2,2080.0,2.98829746]
[1772619655020,3.02876991,2081.1,2080.0,2.98829746]
[1772619656019,4.23011541,2081.0,2080.1,1.20186529]
[1772619656426,1.20133063,2081.1,2080.2,2.98829746]
[1772619656640,5.67710054,2081.1,2080.2,2.98829746]
[1772619656840,3.02876991,2081.0,2080.2,2.98829746]
[1772619657033,3.02876991,2081.0,2080.1,1.20186529]
[1772619657434,3.02876991,2081.0,2080.1,4.19016275]
[1772619657833,4.23396612,2081.3,2080.2,2.51025049]
[1772619658054,1.20517939,2081.3,2080.5,2.98829746]
[1772619658217,1.20517755,2081.3,2080.5,2.98829746]
[1772619658423,0.004,2081.3,2080.5,2.98829746]
[1772619659149,0.002,2081.2,2080.5,2.98829746]
[1772619659354,0.002,2081.3,2080.5,2.98829746]
[1772619659756,0.002,2081.5,2080.5,3.13778245]
[1772619659945,0.002,2081.1,2080.5,3.13778245]
[1772619660146,0.002,2081.5,2080.7,2.98829746]
[1772619660946,1.20290997,2081.8,2081.0,2.98829746]
[1772619660947,0.002,2081.8,2081.0,2.98829746]
[1772619662142,0.002,2081.8,2081.2,2.98829746]
[1772619662861,4.80488343,2082.1,2081.2,2.98829746]
[1772619662862,0.002,2082.1,2081.2,2.98829746]
[1772619663062,7.83023829,2082.7,2081.4,2.98829746]
[1772619663360,3.02876991,2082.8,2081.4,2.98829746]
[1772619663525,3.02876991,2082.8,2081.6,2.98829746]
[1772619664256,4.22911359,2082.8,2081.8,2.98829746]
[1772619665057,3.02876991,2082.7,2081.7,1.20094153]
[1772619665457,3.02876991,2082.7,2081.6,1.20096003]
[1772619665627,3.02876991,2082.7,2081.2,4.18948939]
[1772619665833,3.02876991,2082.7,2081.3,2.98829746]
[1772619666157,1.20053784,2082.4,2081.5,2.98829746]
[1772619666362,4.22927962,2082.5,2081.5,2.98829746]
[1772619666562,4.22925184,2082.5,2081.5,2.98829746]
[1772619667162,3.02876991,2082.4,2081.4,1.20111463]
[1772619667744,3.02876991,2082.4,2081.4,4.18941209]
[1772619668234,4.2293654,2082.3,2081.4,4.18941209]
[1772619668436,3.02876991,2082.2,2081.4,1.20111463]
[1772619670357,1.20071082,2082.1,2081.2,1.20123005]
[1772619670579,4.22948073,2082.1,2081.2,1.20123005]
[1772619671470,3.02876991,2082.0,2081.2,1.20123005]
[1772619671676,3.02876991,2082.0,2080.9,1.20140323]
[1772619671850,3.02876991,2082.0,2081.4,0.001]
[1772619672174,3.03076991,2082.0,2081.4,0.001]
[1772619672478,4.22959607,2081.9,2081.4,0.001]
[1772619672771,0.002,2082.0,2081.4,0.001]
[1772619674274,0.002,2082.2,2081.4,2.98929746]
[1772619674489,0.002,2082.2,2081.4,1.20211398]
[1772619674490,3.03076991,2082.2,2081.4,1.20211398]
[1772619674656,3.03076991,2082.2,2081.4,1.20210488]
[1772619675665,0.002,2082.5,2081.5,3.13778245]
[1772619675847,4.23125237,2082.5,2081.5,2.98829746]
[1772619676044,3.02876991,2082.4,2081.5,2.98829746]
[1772619676244,3.02876991,2082.4,2081.4,1.20210488]
[1772619676450,4.2293654,2082.3,2081.4,0.001]
[1772619676750,1.20057122,2082.4,2081.4,2.98929746]
[1772619677780,1.20251512,2082.5,2081.6,2.98829746]
[1772619678577,0.002,2082.5,2081.8,3.15322565]
[1772619678763,4.65855749,2082.9,2081.8,3.15322565]
[1772619679350,1.53852098,2082.9,2081.9,3.15322565]
[1772619680460,3.12003651,2082.8,2081.4,0.001]
[1772619680797,3.12003651,2082.6,2081.4,4.80539098]
[1772619682388,3.12003651,2082.6,2081.4,7.93527106]
[1772619682681,4.26318467,2082.5,2081.6,1.20099923]
[1772619682858,7.8642404,2082.7,2081.7,3.12988008]
[1772619683056,3.06267664,2082.6,2081.6,1.20099923]
[1772619683255,3.06267664,2082.7,2081.7,3.12988008]
[1772619684594,1.20035301,2082.8,2081.8,1.20088385]
[1772619684906,0.002,2082.4,2081.8,1.20088385]
[1772619685278,0.002,2082.6,2081.9,3.12988008]
[1772619685679,0.002,2082.6,2081.8,1.20088385]
[1772619686387,0.002,2082.6,2081.7,1.20089841]
[1772619686388,3.06467664,2082.6,2081.7,1.20089841]
[1772619686759,1.20048019,2082.5,2081.6,0.001]
[1772619687361,1.20048019,2082.5,2081.6,3.13088008]
[1772619687968,4.26315683,2082.5,2081.6,3.13088008]
[1772619688162,3.06267664,2082.4,2081.6,0.001]
[1772619688363,3.06267664,2082.4,2081.1,0.001]
[1772619688566,3.06267664,2082.2,2081.1,1.2022856]
[1772619688789,3.06267664,2082.0,2081.1,0.001]
[1772619689367,4.49967664,2082.0,2081.1,0.001]
[1772619689563,3.06267664,2082.0,2081.1,3.13088008]
[1772619689762,1.2006605,2082.2,2081.1,3.13088008]
[1772619690399,4.80369623,2082.6,2081.3,3.12988008]
[1772619690400,1.20048019,2082.5,2081.3,3.12988008]
[1772619691298,1.20048019,2082.5,2081.5,3.12988008]
[1772619691898,3.06267664,2082.4,2081.4,1.20111463]
[1772619692100,3.06267664,2082.4,2081.3,1.20113677]
[1772619693099,3.06267664,2082.5,2081.3,1.20113677]
[1772619693305,3.06267664,2082.3,2081.3,1.20113677]
[1772619693522,3.06267664,2082.1,2081.3,1.20113677]
[1772619693711,3.06267664,2081.9,2081.1,0.001]
[1772619694063,3.06267664,2081.7,2081.1,0.001]
[1772619695296,1.20111463,2081.4,2080.9,0.001]
[1772619695592,4.26379127,2081.4,2080.9,0.001]
[1772619696293,1.436,2081.6,2080.9,0.001]
[1772619696496,3.06267664,2081.5,2080.9,0.001]
[1772619697290,1.20111463,2081.4,2081.1,0.001]
[1772619698520,4.26379127,2081.4,2081.1,0.001]
[1772619698667,3.06267664,2081.3,2081.1,0.001]
[1772619699376,1.20123005,2081.2,2081.1,0.001]
[1772619699714,1.20123005,2081.2,2080.9,0.001]
[1772619699715,3.06267664,2081.1,2080.9,0.001]
[1772619700270,1.20118939,2081.3,2080.9,0.001]
[1772619700584,4.26386603,2081.3,2080.6,1.82295038]
[1772619700993,3.06267664,2081.2,2080.6,1.82295038]
[1772619701503,4.26396442,2081.1,2080.6,1.72220339]
[1772619701692,4.49867664,2081.0,2080.6,1.72220339]
[1772619702418,1.436,2081.0,2080.6,2.923764]
[1772619703201,2.63727376,2081.2,2080.6,2.923764]
[1772619703573,1.20127376,2081.2,2080.6,2.923764]
[1772619703781,0.001,2081.5,2080.6,2.923764]
[1772619703991,1.20209851,2081.5,2080.7,3.12988008]
[1772619704684,1.20209851,2081.5,2080.6,2.923764]
[1772619704880,4.26477515,2081.5,2080.6,2.923764]
[1772619705187,3.06267664,2081.4,2080.6,2.923764]
[1772619705683,3.06267664,2081.2,2080.6,1.72220339]
[1772619705885,1.20117234,2081.3,2080.6,1.72220339]
[1772619705886,3.06267664,2081.0,2080.6,1.72220339]
[1772619706092,3.06267664,2081.0,2080.6,0.001]
[1772619707786,1.20140323,2080.9,2080.6,0.001]
[1772619708194,1.20140323,2080.9,2080.0,1.20288623]
[1772619708402,1.20140323,2080.9,2080.0,4.30764461]
[1772619709308,7.86828959,2081.0,2080.0,4.30764461]
[1772619709309,2.63838589,2081.0,2080.1,3.10475838]
[1772619709899,2.63838589,2081.0,2080.2,1.20180751]
[1772619710105,2.63827231,2081.2,2080.3,3.10475838]
[1772619710414,4.80543909,2081.5,2080.3,3.10475838]
[1772619710415,1.20115582,2081.4,2080.3,3.10475838]
[1772619710620,1.20115582,2081.4,2080.8,0.001]
[1772619712319,4.80534051,2081.5,2080.8,0.001]
[1772619712617,4.80534051,2081.5,2080.5,0.001]
[1772619712618,2.93717244,2081.4,2080.5,0.001]
[1772619713518,2.93717244,2081.4,2080.5,1.20262567]
[1772619713990,1.437,2081.3,2080.5,1.20262567]
[1772619714191,1.437,2081.3,2080.5,0.001]
[1772619714192,4.37417244,2081.3,2080.5,0.001]
[1772619714393,2.63823005,2081.2,2080.5,0.001]
[1772619716420,1.20105693,2081.5,2080.5,3.10575838]
[1772619716622,5.57521021,2081.6,2080.5,3.10575838]
[1772619717194,2.93717244,2081.5,2080.5,3.10575838]
[1772619718221,2.93717244,2081.5,2080.5,0.001]
[1772619718615,2.93717244,2081.3,2080.5,0.001]
[1772619719821,1.437,2081.2,2080.5,0.001]
[1772619720033,1.20111463,2081.4,2080.5,3.10575838]
[1772619720228,1.438,2081.3,2080.5,3.10575838]
[1772619720602,1.20105693,2081.5,2080.6,4.30633484]
[1772619720797,4.13821573,2081.6,2080.7,3.10475838]
[1772619721101,4.80356773,2081.8,2080.7,3.10475838]
[1772619721302,2.93717244,2081.6,2080.6,1.20157646]
[1772619722113,2.93717244,2081.4,2080.6,1.20157646]
[1772619722319,1.438,2081.3,2080.6,1.20157646]
[1772619722629,1.438,2081.3,2080.7,0.001]
[1772619722810,0.002,2081.1,2080.7,0.001]
[1772619725501,1.20317588,2081.3,2080.7,3.10575838]
[1772619725700,0.002,2081.3,2080.7,3.10575838]
[1772619726602,1.2031781,2081.3,2080.7,3.10575838]
[1772619726811,0.002,2081.3,2080.7,1.20247715]
[1772619727123,0.002,2081.3,2080.7,0.001]
[1772619727124,2.93917244,2081.3,2080.7,0.001]
[1772619727318,2.93917244,2081.3,2080.5,1.20263337]
[1772619728036,2.87632776,2081.2,2080.5,0.001]
[1772619728238,4.31458146,2081.1,2080.5,0.001]
[1772619728542,2.87665325,2081.0,2080.5,0.001]
[1772619729025,1.20140323,2080.9,2080.5,0.001]
[1772619729832,1.20139011,2081.0,2080.5,0.001]
[1772619729999,1.438,2081.0,2080.5,0.001]
[1772619730429,4.80669733,2081.3,2080.5,0.001]
[1772619730430,1.20319475,2081.3,2080.5,0.001]
[1772619731001,0.002,2081.3,2080.5,3.10575838]
[1772619731410,9.17933691,2082.4,2080.8,3.10475838]
[1772619731613,1.44,2082.4,2081.2,3.10475838]
[1772619731828,1.44,2082.4,2081.3,3.10475838]
[1772619732316,0.002,2082.4,2081.3,3.10475838]
[1772619732922,0.002,2082.4,2081.7,3.10475838]
[1772619733125,0.3402362,2082.9,2081.7,3.10475838]
[1772619733311,1.54048894,2082.9,2081.7,3.31977937]
[1772619733633,1.20205544,2083.3,2082.2,3.10475838]
[1772619734037,0.002,2083.5,2082.3,3.10475838]
[1772619734209,4.1368459,2084.0,2082.7,3.10475838]
[1772619734533,1.19967346,2084.0,2082.9,3.10475838]
[1772619734703,2.93717244,2084.3,2082.9,3.10475838]
[1772619734909,2.93717244,2084.3,2082.6,1.45248499]
[1772619734910,4.13665759,2084.3,2083.1,3.10475838]
[1772619735136,2.93717244,2084.3,2082.7,7.90599828]
[1772619736144,2.93717244,2084.3,2082.8,3.10475838]
[1772619736311,4.79777383,2084.5,2083.0,3.10475838]
[1772619736815,2.93717244,2084.4,2082.7,7.90599828]
[1772619737018,2.93717244,2084.1,2082.4,1.20048534]
[1772619737218,0.002,2083.0,2082.5,3.10475838]
[1772619737417,0.002,2083.2,2082.6,0.001]
[1772619739638,0.002,2083.5,2082.6,2.95316371]
[1772619740211,1.19973126,2083.8,2082.8,2.95216371]
[1772619741335,3.00794332,2083.9,2082.8,4.15242415]
[1772619741713,3.00794332,2083.9,2082.7,1.20032256]
[1772619741919,3.00794332,2083.9,2082.6,1.20137929]
[1772619742134,3.00794332,2083.9,2082.6,1.20141638]
[1772619742334,2.863502,2083.8,2082.6,1.20141638]
[1772619742507,2.863502,2083.7,2082.6,0.001]
[1772619743234,2.863502,2083.5,2082.6,0.001]
[1772619743917,1.19984641,2083.6,2082.6,2.71844121]
[1772619745139,2.863502,2083.7,2082.6,0.001]
[1772619747340,2.863502,2083.5,2082.6,0.001]
[1772619747545,4.295502,2083.4,2082.6,0.001]
[1772619747760,1.19984641,2083.6,2082.6,0.001]
[1772619747761,1.19984641,2083.6,2082.6,2.71844121]
[1772619748821,4.063003,2084.2,2082.6,2.71844121]
[1772619749546,0.002,2083.4,2082.8,0.001]
[1772619750152,2.865502,2083.4,2082.8,0.001]
[1772619750354,2.865502,2083.4,2082.6,0.001]
[1772619751436,2.865502,2083.4,2082.3,0.001]
[1772619751437,2.863502,2083.2,2082.3,0.001]
[1772619752861,4.294502,2083.1,2082.3,0.001]
[1772619753045,2.863502,2083.0,2082.3,0.001]
[1772619753559,1.20024965,2082.9,2082.3,0.001]
[1772619754746,1.20023604,2083.0,2082.3,0.001]
[1772619754944,1.20014582,2083.1,2082.3,0.001]
[1772619755151,2.863502,2083.0,2082.3,0.001]
[1772619755671,1.20024965,2082.9,2082.3,0.001]
[1772619755853,2.63024965,2082.9,2082.3,0.001]
[1772619757265,2.63024965,2082.9,2081.7,3.91836814]
[1772619757557,2.63024965,2082.9,2081.8,2.71744121]
[1772619758139,2.63024965,2082.9,2081.9,1.20082616]
[1772619758553,2.63024965,2082.9,2081.8,3.91828585]
[1772619760359,1.20024965,2082.9,2081.8,3.91828585]
[1772619760935,1.20024965,2082.9,2081.9,2.71744121]
[1772619761734,2.63024965,2082.9,2081.9,2.71744121]
[1772619761936,5.49375165,2082.9,2081.9,2.71744121]
[1772619762863,5.49375165,2082.9,2082.0,0.001]
[1772619765362,5.49375165,2082.9,2081.8,0.001]
[1772619765946,5.49375165,2082.9,2081.8,2.71844121]
[1772619766145,1.20024965,2082.9,2082.0,2.71744121]
[1772619767519,1.20220067,2083.0,2082.2,2.71744121]
[1772619767838,1.20220067,2083.0,2081.8,1.2018416]
[1772619767839,2.863502,2082.8,2081.8,1.2018416]
[1772619768267,1.20036491,2082.7,2081.8,0.001]
[1772619769246,1.20036491,2082.7,2081.8,2.88143789]
[1772619769739,2.63036491,2082.7,2081.8,2.88143789]
[1772619770156,2.63036491,2082.7,2081.9,4.08126405]
[1772619770341,2.63036491,2082.7,2082.0,2.88043789]
[1772619770541,2.63037875,2082.7,2082.0,2.88043789]
[1772619772154,1.43,2082.7,2082.1,1.20071082]
[1772619772355,2.63036496,2082.7,2082.1,4.08114871]
[1772619772886,0.002,2083.0,2082.2,2.88043789]
[1772619773188,1.20200059,2083.4,2082.2,2.88043789]
[1772619773351,1.20196397,2083.4,2082.2,2.88043789]
[1772619773956,0.002,2083.4,2082.2,2.88043789]
[1772619774464,0.002,2083.4,2082.4,2.88043789]
[1772619774858,2.84744639,2083.2,2082.3,1.20059549]
[1772619775073,0.002,2083.2,2082.4,2.88043789]
[1772619776265,0.002,2082.8,2082.5,4.08091808]
[1772619776464,0.002,2083.2,2082.5,4.08091808]
[1772619776680,0.002,2083.0,2082.5,4.08091808]
[1772619778069,0.002,2083.0,2082.5,1.20048019]
[1772619778382,0.002,2083.0,2082.3,1.20059549]
[1772619778889,0.002,2083.0,2082.3,4.08103338]
[1772619779084,0.002,2083.0,2082.4,2.88043789]
[1772619779790,0.002,2083.0,2082.3,1.20059549]
[1772619780584,2.84744639,2083.0,2082.2,4.80357977]
[1772619780799,2.84744639,2083.0,2082.2,0.001]
[1772619781792,4.27344639,2082.9,2082.2,0.001]
[1772619781989,2.84544639,2082.8,2082.2,0.001]
[1772619782898,1.20036491,2082.7,2082.2,0.001]
[1772619783399,1.20034113,2082.8,2082.2,0.001]
[1772619784809,1.20219203,2083.0,2082.2,0.001]
[1772619786694,4.04763842,2083.0,2082.2,0.001]
[1772619788111,1.20219639,2083.0,2082.2,2.88143789]
[1772619788681,0.002,2083.0,2082.2,2.88143789]
[1772619789092,0.002,2083.0,2082.5,2.88043789]
[1772619789412,0.002,2082.8,2082.5,2.88043789]
[1772619789609,0.002,2083.0,2082.5,2.88043789]
[1772619790976,0.002,2083.0,2082.4,0.001]
[1772619791690,2.84744639,2083.0,2082.4,0.001]
[1772619792981,2.84744639,2083.0,2082.1,0.001]
[1772619792982,2.84544639,2082.8,2082.1,0.001]
[1772619793190,2.84544639,2082.8,2081.9,0.001]
[1772619793191,2.84544639,2082.6,2081.9,0.001]
[1772619793504,2.84544639,2082.4,2081.6,3.03112497]
[1772619793815,2.84544639,2082.2,2081.6,3.03112497]
[1772619794208,2.84544639,2082.2,2081.0,4.08175916]
[1772619794412,2.84544639,2082.2,2081.1,2.88043789]
[1772619794708,2.84544639,2082.2,2081.1,2.88143789]
[1772619795222,1.20071082,2082.1,2081.2,1.20123005]
[1772619798526,2.68494179,2081.7,2080.5,0.001]
[1772619798693,2.68494179,2081.5,2080.5,0.001]
[1772619798895,2.68494179,2081.3,2080.5,0.001]
[1772619799096,2.68494179,2081.1,2080.5,0.001]
[1772619799317,2.68494179,2080.7,2080.3,0.001]
[1772619801323,1.20157646,2080.6,2080.3,0.001]
[1772619802564,4.0721558,2080.6,2080.5,0.001]
[1772619802728,4.0721558,2080.6,2080.0,0.001]
[1772619802729,2.87057934,2080.5,2080.0,0.001]
[1772619802896,2.87057934,2080.5,2079.8,0.001]
[1772619803096,2.87057934,2080.5,2079.8,0.003]
[1772619803395,2.87057934,2080.3,2079.8,0.003]
[1772619803595,4.29557934,2080.3,2079.8,0.003]
[1772619804127,2.87057934,2080.2,2079.0,4.03678449]
[1772619804817,2.87057934,2080.2,2079.0,4.03678625]
[1772619805045,2.87057934,2080.2,2078.7,1.274]
[1772619805046,2.87057934,2080.2,2078.7,2.8343168]
[1772619805253,2.87057934,2080.1,2078.7,2.8343168]
[1772619805430,2.87057934,2080.1,2078.3,4.81159571]
[1772619805431,2.87057934,2079.7,2078.4,1.20284834]
[1772619805745,2.64565876,2079.8,2078.4,1.20284834]
[1772619805746,2.87057934,2079.5,2078.4,1.20284834]
[1772619805949,2.12507788,2079.4,2078.4,1.20284834]
[1772619806268,4.99565722,2079.4,2078.4,1.20284834]
[1772619806558,2.87057934,2079.2,2078.1,1.54321725]
[1772619806733,2.10749788,2079.1,2078.1,1.20299907]
[1772619806932,2.10749788,2079.1,2078.1,4.03731587]
[1772619807135,2.10749788,2079.1,2078.2,2.8343168]
[1772619807736,2.10749788,2079.1,2078.1,1.20299907]
[1772619807737,1.2025012,2079.0,2078.1,1.20299907]
[1772619807948,2.87057934,2078.8,2077.9,0.0772996]
[1772619808771,2.87057934,2078.8,2077.9,1.28043055]
[1772619809146,2.87057934,2078.8,2077.9,0.0772996]
[1772619809461,4.29557934,2078.8,2077.9,1.28043614]
[1772619809756,1.20267474,2078.7,2077.9,4.11475294]
[1772619809965,8.34254798,2079.0,2077.9,4.11475294]
[1772619809966,3.31002217,2079.0,2078.0,2.8343168]
[1772619810534,2.10749788,2079.0,2078.1,2.72488612]
[1772619810864,2.10749788,2079.0,2078.2,2.8343168]
[1772619811665,1.20215426,2079.6,2078.4,2.8343168]
[1772619812940,2.87057934,2079.5,2078.2,1.20292872]
[1772619813139,2.87057934,2079.5,2078.0,2.8343168]
[1772619813140,2.87057934,2079.4,2078.0,1.20303583]
[1772619813333,4.29557934,2079.3,2078.0,1.20303583]
[1772619813554,4.29557934,2079.3,2078.0,4.03735263]
[1772619813737,1.20238553,2079.2,2078.0,4.03735263]
[1772619813945,4.07296487,2079.2,2078.0,4.03735263]
[1772619814964,4.07296487,2079.2,2078.6,0.001]
[1772619816165,2.87057934,2079.1,2078.6,0.001]
[1772619817163,1.20238553,2079.2,2078.6,0.001]